bitfinex-derivatives/quotes_BTCF0:USTF0_20250127
["timestamp","ask_amount","ask_price","bid_price","bid_amount"]
[1737959966300,6.159e-05,99702.0,99694.0,0.00015037]
[1737959966301,0.200721,99695.0,99694.0,0.00015037]
[1737959966504,0.561521,99695.0,99694.0,0.00015037]
[1737959966709,0.561521,99695.0,99670.0,1.5]
[1737959966918,0.200747,99682.0,99670.0,0.76935983]
[1737959967307,0.200773,99669.0,99668.0,0.3708]
[1737959968114,0.200773,99669.0,99668.0,0.3608]
[1737959968410,0.20983907,99669.0,99668.0,0.3608]
[1737959968619,0.200785,99663.0,99662.0,0.1327]
[1737959968913,0.00015045,99678.0,99668.0,0.01]
[1737959968914,0.20090645,99678.0,99668.0,0.01]
[1737959969116,0.200767,99673.0,99662.0,0.1327]
[1737959969320,0.00950718,99678.0,99662.0,0.1327]
[1737959969615,0.200779,99667.0,99662.0,0.1327]
[1737959971912,0.200786,99663.0,99662.0,0.001]
[1737959972921,0.200786,99663.0,99659.0,0.00015045]
[1737959973112,0.200786,99663.0,99662.0,0.001]
[1737959973321,0.561586,99663.0,99662.0,0.001]
[1737959974920,0.56164759,99663.0,99662.0,0.001]
[1737959975121,0.344186,99663.0,99662.0,0.001]
[1737959975436,0.200792,99660.0,99659.0,0.00215045]
[1737959976127,0.200792,99660.0,99659.0,0.00015045]
[1737959976516,0.344186,99663.0,99606.0,0.200899]
[1737959976720,0.344186,99663.0,99576.0,0.3595]
[1737959976721,0.3608,99607.0,99582.0,0.01133481]
[1737959977020,0.10747156,99660.0,99531.0,0.99600077]
[1737959977021,0.200986,99564.0,99536.0,0.0674]
[1737959977226,0.201004,99555.0,99536.0,0.0674]
[1737959977526,0.3608,99555.0,99536.0,0.0674]
[1737959977721,0.3608,99537.0,99536.0,0.0674]
[1737959978221,0.3608,99537.0,99536.0,0.00010112]
[1737959978417,0.3608,99537.0,99525.0,0.46570135]
[1737959978418,0.83054188,99537.0,99525.0,0.46570135]
[1737959978623,0.3608,99527.0,99525.0,0.46570135]
[1737959979727,0.46933237,99527.0,99526.0,0.52390305]
[1737959979921,0.46933237,99527.0,99526.0,0.46056879]
[1737959980420,0.48110933,99527.0,99526.0,0.46056879]
[1737959980621,0.3608,99527.0,99526.0,0.46056879]
[1737959980819,0.36086159,99527.0,99526.0,0.46056879]
[1737959981019,0.3608,99527.0,99526.0,0.46056879]
[1737959981215,0.0001507,99536.0,99521.0,0.3608]
[1737959981422,0.3608,99548.0,99547.0,0.20102]
[1737959982417,0.3608,99549.0,99547.0,0.20102]
[1737959982824,0.3608,99549.0,99546.0,0.201022]
[1737959983033,0.3608,99549.0,99539.0,0.3608]
[1737959983221,0.3608,99549.0,99538.0,0.0001507]
[1737959983528,0.3608,99539.0,99538.0,0.0001507]
[1737959985129,0.3618,99539.0,99538.0,0.0001507]
[1737959987124,0.3618,99539.0,99522.0,1.5006]
[1737959987323,0.3618,99539.0,99532.0,0.20105]
[1737959987519,0.3618,99539.0,99522.0,0.0006]
[1737959987724,0.3608,99530.0,99523.0,0.201068]
[1737959988029,0.3618,99539.0,99521.0,0.0856]
[1737959988324,0.3618,99539.0,99502.0,1.5]
[1737959988325,0.3608,99522.0,99504.0,0.201106]
[1737959988529,0.3608,99522.0,99501.0,0.3608]
[1737959988729,0.561871,99522.0,99501.0,0.3608]
[1737959989329,0.3608,99522.0,99508.0,0.201099]
[1737959989633,0.3608,99531.0,99517.0,0.3608]
[1737959989826,0.0001507,99536.0,99517.0,0.3608]
[1737959989827,0.0001507,99536.0,99526.0,0.3608]
[1737959990127,0.0001507,99536.0,99534.0,0.561846]
[1737959990521,0.3608,99553.0,99538.0,0.201038]
[1737959991025,0.3608,99553.0,99534.0,0.3608]
[1737959991221,0.3608,99553.0,99543.0,0.561861]
[1737959991422,0.3608,99553.0,99543.0,0.3608]
[1737959991634,0.3608,99559.0,99543.0,0.3608]
[1737959991824,0.14695761,99549.0,99543.0,0.3608]
[1737959992035,0.3608,99548.0,99538.0,0.0001507]
[1737959992327,0.201048,99534.0,99520.0,0.46877891]
[1737959992528,0.201059,99528.0,99520.0,0.26770491]
[1737959993523,0.0001507,99534.0,99527.0,0.3608]
[1737959993723,0.0001507,99534.0,99532.0,0.201049]
[1737959994834,0.201032,99542.0,99527.0,0.55168771]
[1737959995041,0.3608,99540.0,99520.0,0.26770491]
[1737959995330,0.3608,99540.0,99518.0,0.61620227]
[1737959995331,0.201056,99530.0,99518.0,0.3608]
[1737959995542,0.201037,99539.0,99521.0,0.201073]
[1737959995831,0.3608,99540.0,99534.0,0.201046]
[1737959996038,0.3609507,99540.0,99528.0,0.3608]
[1737959996425,0.3609507,99540.0,99537.0,0.3608]
[1737959996426,0.0001507,99540.0,99537.0,0.3608]
[1737959996838,0.0001507,99540.0,99538.0,1.701037]
[1737959997231,0.0001507,99540.0,99538.0,0.201037]
[1737959998434,0.0001507,99540.0,99539.0,1.5]
[1737959999434,0.3609507,99540.0,99520.0,0.0001507]
[1737959999634,0.201073,99521.0,99520.0,0.0001507]
[1737960000524,0.3608,99526.0,99520.0,0.0001507]
[1737960000724,0.201041,99537.0,99525.0,0.201064]
[1737960000928,0.201041,99537.0,99520.0,0.0001507]
[1737960000929,0.3608,99528.0,99520.0,0.0001507]
[1737960001132,0.561855,99531.0,99520.0,0.0001507]
[1737960001340,0.561855,99531.0,99527.0,0.20106]
[1737960002136,0.3608,99531.0,99520.0,0.0011507]
[1737960002437,0.201072,99522.0,99520.0,0.0011507]
[1737960002641,0.561855,99531.0,99520.0,0.0011507]
[1737960002839,0.3608,99531.0,99520.0,0.0011507]
[1737960003025,0.3608,99531.0,99522.0,0.3608]
[1737960003343,0.3608,99531.0,99526.0,0.201062]
[1737960003635,0.3608,99531.0,99522.0,0.3608]
[1737960003636,0.561853,99531.0,99522.0,0.3608]
[1737960003835,0.561853,99531.0,99522.0,0.561871]
[1737960004237,0.561853,99531.0,99522.0,0.3608]
[1737960004441,0.561853,99531.0,99524.0,0.201067]
[1737960004740,0.3608,99531.0,99528.0,0.201059]
[1737960004935,0.11689288,99529.0,99528.0,0.201059]
[1737960005345,0.14695761,99536.0,99522.0,0.3608]
[1737960005546,0.14695761,99536.0,99535.0,0.561845]
[1737960005840,0.3608,99554.0,99531.0,0.3608]
[1737960006146,0.3608,99554.0,99522.0,0.4488]
[1737960006147,0.201062,99527.0,99522.0,0.088]
[1737960006437,0.201053,99532.0,99522.0,0.20107]
[1737960006636,0.3608,99545.0,99522.0,0.20107]
[1737960006835,0.3608,99545.0,99514.0,0.4418]
[1737960006836,0.201047,99535.0,99514.0,0.4418]
[1737960007043,0.201047,99535.0,99514.0,0.26088117]
[1737960007238,0.201099,99509.0,99507.0,0.0006]
[1737960007442,0.201099,99509.0,99499.0,0.201116]
[1737960007630,0.201099,99509.0,99496.0,0.3608]
[1737960007831,0.201084,99516.0,99496.0,0.3608]
[1737960008032,0.3608,99520.0,99496.0,0.3608]
[1737960008232,0.3608,99511.0,99497.0,0.20112]
[1737960008441,0.2011,99508.0,99497.0,0.20112]
[1737960008741,0.3608,99520.0,99506.0,0.90402766]
[1737960009041,0.0001507,99521.0,99506.0,0.90402766]
[1737960009236,0.0001507,99521.0,99520.0,0.201075]
[1737960010636,0.04889209,99534.0,99533.0,0.201049]
[1737960011134,0.04889209,99534.0,99533.0,0.501049]
[1737960011331,0.11465312,99554.0,99553.0,0.201009]
[1737960011736,6.159e-05,99554.0,99553.0,0.201009]
[1737960011936,0.3608,99556.0,99554.0,0.201006]
[1737960012333,0.3608,99556.0,99544.0,0.0001507]
[1737960012334,6.159e-05,99555.0,99548.0,0.3608]
[1737960012538,0.0001507,99563.0,99562.0,0.200991]
[1737960012739,6.159e-05,99563.0,99562.0,0.3608]
[1737960012935,0.200927,99594.0,99583.0,0.200946]
[1737960013138,9.00052001,99600.0,99573.0,0.3608]
[1737960013437,9.00052001,99600.0,99582.0,0.3608]
[1737960013640,9.00052001,99600.0,99594.0,0.10665661]
[1737960014143,0.29759183,99599.0,99594.0,0.10665661]
[1737960015031,0.29759183,99599.0,99582.0,0.3608]
[1737960015245,0.39208578,99598.0,99590.0,0.200934]
[1737960015938,0.19116578,99598.0,99594.0,0.200925]
[1737960016338,0.19116578,99598.0,99597.0,0.20092]
[1737960016546,0.00015062,99599.0,99597.0,0.20092]
[1737960016746,0.00015062,99599.0,99597.0,2.00092]
[1737960017443,0.00015062,99599.0,99597.0,1.70092]
[1737960017851,0.00015062,99599.0,99597.0,0.001]
[1737960018252,0.00015062,99599.0,99597.0,0.201919]
[1737960018547,0.00015062,99599.0,99598.0,0.3608]
[1737960019253,0.00015062,99599.0,99597.0,0.201919]
[1737960020045,0.00015062,99599.0,99598.0,0.001]
[1737960020249,0.00021221,99599.0,99598.0,0.3618]
[1737960020447,6.25036022,99600.0,99599.0,0.200916]
[1737960020643,5.08664358,99600.0,99599.0,0.200916]
[1737960020838,5.08658199,99600.0,99599.0,2.000916]
[1737960021040,4.37384847,99600.0,99599.0,2.000916]
[1737960021247,3.19822999,99600.0,99599.0,2.000916]
[1737960021447,0.08866247,99622.0,99621.0,0.200872]
[1737960021652,0.32718534,99654.0,99621.0,0.7216]
[1737960021849,0.32718534,99654.0,99646.0,0.3608]
[1737960022852,0.27890706,99647.0,99646.0,0.3608]
[1737960023047,0.58010706,99647.0,99640.0,0.3608]
[1737960023245,0.3012,99642.0,99640.0,0.3608]
[1737960023447,0.3012,99641.0,99640.0,0.3608]
[1737960023643,0.200838,99638.0,99637.0,0.00015053]
[1737960023850,0.200901,99607.0,99605.0,0.3608]
[1737960025049,0.200884,99615.0,99605.0,0.3608]
[1737960025243,0.00015053,99616.0,99605.0,0.62850491]
[1737960025444,0.00015053,99616.0,99615.0,0.3608]
[1737960026346,0.20083,99642.0,99615.0,0.6608]
[1737960026549,0.20083,99642.0,99635.0,0.3608]
[1737960026851,0.200813,99651.0,99635.0,0.3608]
[1737960027052,0.502013,99651.0,99635.0,0.3608]
[1737960027348,0.200815,99650.0,99649.0,0.3608]
[1737960027548,0.00015053,99653.0,99649.0,0.3608]
[1737960027748,0.1913,99684.0,99652.0,0.3608]
[1737960027941,0.200791,99661.0,99660.0,0.3608]
[1737960028142,0.3012,99668.0,99660.0,0.3608]
[1737960028347,0.200791,99661.0,99660.0,0.3608]
[1737960028550,0.200791,99661.0,99660.0,1.8608]
[1737960028742,0.3608,99677.0,99652.0,0.3608]
[1737960028947,0.20092353,99670.0,99652.0,0.3608]
[1737960029241,0.00015053,99670.0,99667.0,0.3608]
[1737960029544,0.00015053,99670.0,99669.0,0.3608]
[1737960030948,0.30135053,99670.0,99649.0,0.3608]
[1737960031156,0.200808,99653.0,99649.0,0.3608]
[1737960031841,0.200808,99653.0,99637.0,0.3608]
[1737960031842,0.3012,99652.0,99637.0,0.3608]
[1737960032041,0.3012,99652.0,99628.0,0.3608]
[1737960032342,0.3012,99633.0,99628.0,0.3608]
[1737960032551,0.3012,99629.0,99628.0,0.3608]
[1737960033156,0.200835,99640.0,99628.0,0.3608]
[1737960033357,0.00015053,99638.0,99628.0,0.3608]
[1737960034052,0.502056,99629.0,99628.0,0.001]
[1737960034355,0.3012,99629.0,99619.0,0.00015053]
[1737960034550,0.3012,99620.0,99619.0,0.00015053]
[1737960034754,0.502074,99620.0,99619.0,0.00015053]
[1737960034950,0.200882,99616.0,99615.0,0.36230555]
[1737960035145,0.502082,99616.0,99615.0,0.00150555]
[1737960037946,1.262,99616.0,99606.0,0.00015053]
[1737960038148,0.662,99607.0,99591.0,0.3608]
[1737960038355,0.3012,99596.0,99591.0,0.3608]
[1737960038561,0.3012,99600.0,99592.0,1.700929]
[1737960038763,0.3012,99601.0,99593.0,0.200926]
[1737960039253,0.3012,99601.0,99592.0,1.5006]
[1737960039254,0.3012,99600.0,99592.0,1.5006]
[1737960039450,0.3012,99600.0,99598.0,0.200916]
[1737960039650,0.3012,99600.0,99599.0,0.3608]
[1737960039849,0.00015061,99607.0,99602.0,0.200909]
[1737960040044,0.3012,99601.0,99599.0,0.3608]
[1737960040259,0.502114,99600.0,99599.0,0.3608]
[1737960040951,1.102114,99600.0,99599.0,0.3608]
[1737960041152,0.200928,99593.0,99592.0,1.50064]
[1737960041351,0.30180001,99600.0,99596.0,0.200921]
[1737960041554,0.3012,99600.0,99596.0,0.200921]
[1737960041958,0.3012,99600.0,99592.0,1.50064]
[1737960042158,0.3012,99600.0,99592.0,1.5]
[1737960042657,0.3012,99600.0,99599.0,0.001]
[1737960043252,0.3012,99600.0,99599.0,1.501]
[1737960043446,0.00015061,99607.0,99599.0,2.061715]
[1737960043655,0.3012,99606.0,99599.0,2.061715]
[1737960043857,0.00015061,99607.0,99599.0,2.061715]
[1737960044045,0.200912,99602.0,99599.0,1.5]
[1737960044247,0.200912,99602.0,99599.0,1.501]
[1737960044456,0.200914,99600.0,99599.0,1.501]
[1737960045257,0.200914,99600.0,99591.0,0.56173]
[1737960045258,0.20093,99592.0,99591.0,0.3608]
[1737960045449,0.200938,99588.0,99587.0,0.00015061]
[1737960045651,0.200956,99580.0,99572.0,0.3608]
[1737960045960,0.3012,99579.0,99573.0,1.5]
[1737960046762,0.200962,99577.0,99573.0,1.5]
[1737960047057,0.3012,99574.0,99573.0,1.5]
[1737960047251,0.3012,99554.0,99543.0,0.3608]
[1737960047451,0.201026,99545.0,99543.0,0.3608]
[1737960047651,0.201035,99540.0,99533.0,0.36230689]
[1737960047858,0.3012,99540.0,99533.0,0.00150689]
[1737960048052,0.3012,99540.0,99520.0,0.3608]
[1737960048053,0.201057,99529.0,99520.0,0.3608]
[1737960048251,0.20108,99518.0,99517.0,0.35600953]
[1737960048458,0.50228,99518.0,99517.0,0.35600953]
[1737960048664,1.10077338,99518.0,99517.0,0.35600953]
[1737960049160,1.10077338,99518.0,99420.0,0.01508]
[1737960049161,0.20113,99493.0,99490.0,0.0006]
[1737960049363,1.22393,99493.0,99480.0,0.00150746]
[1737960049554,1.22393,99493.0,99483.0,1.5]
[1737960050251,1.22393,99493.0,99456.0,0.46056879]
[1737960050456,0.201148,99484.0,99456.0,0.66177379]
[1737960050664,0.662,99483.0,99482.0,0.30430135]
[1737960050858,0.662,99483.0,99456.0,0.46056879]
[1737960050859,0.201169,99474.0,99456.0,0.46056879]
[1737960051061,0.561969,99474.0,99456.0,0.46056879]
[1737960051258,0.3608,99474.0,99460.0,0.26770491]
[1737960051459,0.3608,99474.0,99470.0,0.201176]
[1737960051657,0.3608,99474.0,99460.0,0.26770491]
[1737960051658,0.3608,99474.0,99472.0,0.201173]
[1737960052158,0.3608,99474.0,99460.0,0.26770491]
[1737960052159,0.3608,99503.0,99473.0,0.3608]
[1737960052365,0.3012,99494.0,99473.0,0.62850491]
[1737960052556,0.3012,99494.0,99481.0,0.201154]
[1737960052757,0.3012,99488.0,99473.0,0.62850491]
[1737960052958,0.3012,99488.0,99484.0,0.201147]
[1737960053355,0.3608,99497.0,99486.0,0.3608]
[1737960053562,0.050264,99530.0,99486.0,0.3608]
[1737960053563,0.201092,99512.0,99495.0,0.201126]
[1737960053760,0.3012,99500.0,99495.0,0.201126]
[1737960054163,0.201096,99510.0,99499.0,0.201118]
[1737960054571,0.201075,99521.0,99501.0,0.201114]
[1737960054865,0.201082,99517.0,99501.0,0.201114]
[1737960055064,0.201086,99516.0,99501.0,0.201114]
[1737960055266,0.66215069,99502.0,99489.0,0.201137]
[1737960055461,0.66215069,99502.0,99487.0,0.0998]
[1737960055462,0.3012,99488.0,99487.0,0.0998]
[1737960056052,0.20113,99493.0,99487.0,0.0998]
[1737960056253,0.00015069,99502.0,99501.0,0.001]
[1737960056656,0.00015069,99502.0,99501.0,1.501]
[1737960057457,0.00015069,99502.0,99501.0,1.702114]
[1737960057661,0.14729732,99515.0,99505.0,0.201105]
[1737960057859,0.14729732,99515.0,99501.0,1.501]
[1737960057860,0.3608,99512.0,99501.0,1.501]
[1737960058075,0.50231,99503.0,99501.0,1.501]
[1737960058769,0.3608,99502.0,99501.0,1.5]
[1737960058971,0.50231,99503.0,99492.0,0.20128277]
[1737960059166,0.00015077,99512.0,99492.0,0.00015077]
[1737960059471,0.30135077,99512.0,99506.0,1.5]
[1737960059673,0.00015077,99512.0,99506.0,1.701103]
[1737960059873,0.00015077,99512.0,99506.0,1.5]
[1737960059874,0.3608,99507.0,99506.0,1.5]
[1737960060069,0.3608,99507.0,99501.0,0.001]
[1737960060272,0.3012,99502.0,99501.0,0.001]
[1737960060466,0.201128,99494.0,99492.0,0.00015077]
[1737960060768,0.662,99493.0,99492.0,0.00015077]
[1737960061163,0.3608,99493.0,99492.0,0.00015077]
[1737960061360,0.1993,99493.0,99492.0,0.00015077]
[1737960061568,0.36195077,99512.0,99501.0,0.201113]
[1737960061766,0.00115077,99512.0,99510.0,0.201094]
[1737960061960,0.00015077,99512.0,99510.0,0.561894]
[1737960062166,0.01327696,99526.0,99525.0,0.201065]
[1737960062369,0.14729732,99531.0,99510.0,0.6608]
[1737960062370,0.14729732,99531.0,99522.0,0.3608]
[1737960062574,0.14729732,99531.0,99530.0,0.561855]
[1737960062872,0.3608,99557.0,99530.0,1.5]
[1737960063061,0.201067,99525.0,99520.0,0.00150719]
[1737960063266,0.863073,99521.0,99520.0,0.00150719]
[1737960063573,0.201087,99514.0,99513.0,0.00015077]
[1737960063969,0.20111,99503.0,99480.0,0.26770491]
[1737960064275,0.3012,99496.0,99480.0,0.26770491]
[1737960064462,0.201104,99506.0,99480.0,0.26770491]
[1737960064769,0.3012,99502.0,99500.0,0.201115]
[1737960064979,0.3012,99511.0,99497.0,0.3608]
[1737960065161,0.30135077,99511.0,99488.0,0.3608]
[1737960065575,0.30135077,99511.0,99500.0,0.26770491]
[1737960065762,0.30135077,99511.0,99489.0,0.1015]
[1737960066165,0.30135077,99511.0,99509.0,0.201097]
[1737960066372,0.00015077,99511.0,99509.0,0.201097]
[1737960066870,0.3012,99510.0,99497.0,0.3608]
[1737960067068,0.3012,99502.0,99497.0,0.3608]
[1737960067378,0.3608,99508.0,99506.0,0.201102]
[1737960067959,0.00015077,99511.0,99510.0,0.201095]
[1737960069067,0.30135077,99511.0,99502.0,0.20111]
[1737960069270,0.3012,99505.0,99503.0,0.201108]
[1737960069484,0.11769921,99506.0,99505.0,0.201106]
[1737960069975,0.3012,99498.0,99497.0,0.35122844]
[1737960070273,0.201127,99495.0,99485.0,0.201146]
[1737960070471,0.36136001,99498.0,99490.0,0.201134]
[1737960070781,0.3012,99490.0,99488.0,0.20114]
[1737960072268,0.3012,99489.0,99487.0,1.50056]
[1737960072467,0.3012,99489.0,99487.0,1.5]
[1737960072669,0.502339,99489.0,99487.0,1.5]
[1737960072865,0.502339,99489.0,99488.0,0.001]
[1737960073467,0.502339,99489.0,99487.0,0.0006]
[1737960073664,0.3012,99488.0,99487.0,0.001]
[1737960074076,0.201198,99460.0,99450.0,0.201217]
[1737960074283,0.3012,99459.0,99450.0,0.201217]
[1737960074477,0.3012,99459.0,99445.0,0.54084]
[1737960074680,0.3012,99459.0,99456.0,0.201203]
[1737960074974,0.3012,99459.0,99445.0,0.54084]
[1737960075476,0.3012,99458.0,99445.0,0.54084]
[1737960075772,0.3012,99446.0,99445.0,0.54084]
[1737960076364,0.201213,99452.0,99445.0,0.54084]
[1737960076571,0.2012,99459.0,99457.0,0.001]
[1737960077178,0.662,99458.0,99457.0,0.001]
[1737960077474,0.201241,99438.0,99437.0,0.00150825]
[1737960077679,0.662,99438.0,99420.0,0.3608]
[1737960077873,0.201273,99422.0,99421.0,1.5]
[1737960078373,0.502473,99422.0,99421.0,1.5]
[1737960078680,0.3012,99422.0,99404.0,0.3608]
[1737960078879,0.3608,99415.0,99401.0,0.00150902]
[1737960079080,0.502514,99402.0,99401.0,0.00150902]
[1737960080271,0.502514,99402.0,99388.0,1.5]
[1737960080272,0.201333,99393.0,99388.0,1.5]
[1737960080484,0.3012,99396.0,99395.0,0.201328]
[1737960080967,0.3012,99396.0,99388.0,1.5]
[1737960081169,0.50254,99389.0,99378.0,0.3608]
[1737960081470,0.50254,99389.0,99368.0,0.3608]
[1737960081471,0.3012,99381.0,99368.0,0.3608]
[1737960081676,0.3012,99381.0,99379.0,1.5]
[1737960082079,0.3012,99380.0,99368.0,0.3608]
[1737960082275,0.3012,99379.0,99368.0,0.3608]
[1737960082473,0.3608,99383.0,99368.0,0.3608]
[1737960082474,0.502571,99374.0,99368.0,0.3608]
[1737960082674,0.3012,99369.0,99368.0,0.3608]
[1737960082879,0.3012,99369.0,99359.0,0.36230903]
[1737960082880,0.201396,99362.0,99360.0,0.3608]
[1737960083178,0.3012,99361.0,99360.0,0.3608]
[1737960083577,0.3012,99361.0,99349.0,0.3608]
[1737960083778,0.3608,99366.0,99349.0,0.3608]
[1737960083985,0.3608,99366.0,99320.0,0.26770491]
[1737960083986,0.3608,99355.0,99327.0,0.3608]
[1737960084288,0.3608,99343.0,99327.0,0.3608]
[1737960084578,0.201458,99331.0,99316.0,0.3608]
[1737960085082,0.4902,99330.0,99289.0,0.3608]
[1737960085270,0.201537,99292.0,99289.0,0.3608]
[1737960086178,0.00015102,99301.0,99273.0,0.3608]
[1737960086480,0.00015102,99301.0,99293.0,0.3608]
[1737960086680,0.3608,99294.0,99259.0,0.58892457]
[1737960086880,0.10632578,99292.0,99273.0,0.3608]
[1737960087069,0.3608,99295.0,99273.0,0.3608]
[1737960087379,0.3608,99276.0,99259.0,0.58892457]
[1737960087685,0.0020146,99275.0,99262.0,0.031]
[1737960087876,0.0020146,99275.0,99268.0,0.031]
[1737960088175,0.201584,99269.0,99261.0,0.01992]
[1737960088383,0.20161,99256.0,99255.0,0.40895659]
[1737960088567,0.20161,99256.0,99240.0,0.03]
[1737960088568,0.201629,99247.0,99245.0,0.1102155]
[1737960088770,0.11501097,99268.0,99245.0,0.1102155]
[1737960088978,0.00201474,99268.0,99267.0,0.031]
[1737960089174,0.00201474,99268.0,99245.0,0.1202955]
[1737960089175,0.00015111,99266.0,99245.0,0.1102155]
[1737960089382,0.3608,99246.0,99245.0,0.1102155]
[1737960089690,0.00056001,99255.0,99245.0,1.6102155]
[1737960089977,0.3608,99265.0,99254.0,0.031]
[1737960090173,0.00015111,99266.0,99264.0,0.3918]
[1737960090375,0.00015111,99266.0,99265.0,0.031]
[1737960090584,0.3608,99299.0,99267.0,0.031]
[1737960090786,0.00201413,99298.0,99291.0,0.3608]
[1737960090981,0.00201413,99298.0,99297.0,0.201527]
[1737960091187,0.00201413,99298.0,99280.0,0.3608]
[1737960091188,0.11111198,99297.0,99280.0,0.3608]
[1737960091376,0.11111198,99297.0,99296.0,0.201529]
[1737960091572,0.00201413,99298.0,99296.0,0.232529]
[1737960091777,0.00201413,99298.0,99297.0,0.031]
[1737960091975,0.00201413,99298.0,99297.0,1.531]
[1737960092689,1e-08,99298.0,99297.0,1.531]
[1737960092890,0.01264699,99320.0,99310.0,0.2015]
[1737960093090,0.3608,99321.0,99297.0,1.50052]
[1737960093278,0.3608,99311.0,99297.0,1.5]
[1737960093479,0.004,99298.0,99297.0,1.5]
[1737960093678,0.004,99298.0,99282.0,0.201557]
[1737960093879,0.004,99298.0,99275.0,0.3608]
[1737960094079,0.36095111,99303.0,99292.0,0.201535]
[1737960094275,0.36095111,99303.0,99297.0,0.001]
[1737960094483,0.3608,99298.0,99297.0,0.001]
[1737960094882,0.3608,99298.0,99297.0,0.032]
[1737960095190,0.3608,99302.0,99297.0,0.032]
[1737960095389,0.00015111,99303.0,99302.0,0.031]
[1737960095884,0.3608,99331.0,99302.0,0.6608]
[1737960096095,0.3608,99349.0,99329.0,0.3608]
[1737960096287,0.3608,99370.0,99341.0,0.3608]
[1737960096481,0.3608,99378.0,99342.0,0.3608]
[1737960096784,0.36770491,99400.0,99342.0,0.3608]
[1737960096785,0.3608,99362.0,99356.0,0.201406]
[1737960097192,0.00015102,99365.0,99346.0,0.00015102]
[1737960097383,0.00015102,99365.0,99350.0,0.201418]
[1737960097384,0.3608,99359.0,99350.0,0.201418]
[1737960097586,0.00015102,99365.0,99346.0,0.00015102]
[1737960097893,0.3608,99360.0,99355.0,0.201409]
[1737960098191,0.3608,99360.0,99346.0,0.00015102]
[1737960098486,0.3608,99347.0,99346.0,0.00015102]
[1737960098687,0.3608,99347.0,99343.0,0.01008]
[1737960098892,0.3608,99347.0,99343.0,0.01023094]
[1737960099192,0.3608,99347.0,99341.0,0.0015103]
[1737960099193,0.3608,99327.0,99264.0,0.01008]
[1737960099492,0.050357,99345.0,99264.0,0.01008]
[1737960099493,0.3608,99289.0,99279.0,0.201562]
[1737960099686,0.3608,99292.0,99281.0,0.201559]
[1737960099882,0.3608,99291.0,99281.0,0.201559]
[1737960100279,0.3608,99291.0,99267.0,0.3608]
[1737960100280,0.3608,99301.0,99285.0,0.201551]
[1737960100480,0.00015104,99296.0,99289.0,0.3608]
[1737960100685,0.00015104,99296.0,99276.0,0.36095104]
[1737960100887,0.003,99292.0,99276.0,0.36095104]
[1737960101081,0.003,99292.0,99287.0,0.201547]
[1737960101487,0.003,99292.0,99288.0,0.01008]
[1737960101688,0.00246018,99292.0,99288.0,0.01008]
[1737960102483,0.3608,99293.0,99268.0,0.28987567]
[1737960102692,0.3608,99271.0,99268.0,0.01008]
[1737960103190,0.3608,99282.0,99261.0,0.36071859]
[1737960103395,0.3608,99282.0,99276.0,0.201569]
[1737960103589,0.3608,99282.0,99264.0,0.201594]
[1737960103789,0.3608,99282.0,99269.0,0.00015104]
[1737960103991,0.05434198,99270.0,99269.0,0.00015104]
[1737960104288,0.05434198,99270.0,99261.0,0.25994672]
[1737960104594,0.0506016,99270.0,99261.0,0.25994672]
[1737960104891,0.0506016,99270.0,99268.0,0.201585]
[1737960105287,0.44706442,99281.0,99277.0,0.201567]
[1737960105481,0.44706442,99281.0,99279.0,0.201562]
[1737960105683,0.20400767,99283.0,99282.0,0.201558]
[1737960105888,0.20400767,99283.0,99280.0,0.00056]
[1737960106086,0.20400767,99283.0,99272.0,0.201576]
[1737960106597,0.20400767,99283.0,99277.0,0.201566]
[1737960106801,0.20400767,99283.0,99281.0,0.201559]
[1737960106999,0.00015104,99289.0,99287.0,0.201547]
[1737960107496,0.20966531,99299.0,99285.0,0.3608]
[1737960107688,0.00536531,99299.0,99289.0,0.26770491]
[1737960107883,0.00536531,99299.0,99296.0,0.201529]
[1737960108087,0.00536531,99299.0,99285.0,0.3608]
[1737960108288,0.00536531,99299.0,99282.0,0.3608]
[1737960108499,0.00536531,99299.0,99295.0,0.3608]
[1737960108691,0.00536531,99299.0,99298.0,0.201525]
[1737960108992,0.00015104,99302.0,99296.0,1.86132]
[1737960109187,0.13322011,99312.0,99311.0,0.201498]
[1737960109393,0.3608,99355.0,99311.0,0.3608]
[1737960109588,0.3608,99335.0,99323.0,0.201473]
[1737960109795,0.201462,99329.0,99319.0,0.3608]
[1737960110090,0.3608,99325.0,99307.0,0.3608]
[1737960110283,0.3608,99335.0,99318.0,0.3608]
[1737960110485,0.3608,99345.0,99330.0,0.3608]
[1737960110691,0.3608,99345.0,99330.0,0.62850491]
[1737960110893,0.00015104,99336.0,99330.0,0.62850491]
[1737960111092,0.00015104,99336.0,99335.0,0.20145]
[1737960111292,0.3608,99357.0,99345.0,0.201428]
[1737960111501,0.19298202,99349.0,99334.0,0.201451]
[1737960111689,0.19298202,99349.0,99330.0,0.62850491]
[1737960111690,0.3608,99341.0,99330.0,0.62850491]
[1737960111885,0.19298202,99349.0,99340.0,0.20144]
[1737960112093,0.3608,99349.0,99320.0,0.26770491]
[1737960112296,0.3608,99328.0,99320.0,0.26770491]
[1737960112596,0.3608,99328.0,99326.0,0.201468]
[1737960112795,0.3608,99332.0,99320.0,0.26770491]
[1737960112993,0.3608,99340.0,99320.0,0.56770491]
[1737960113191,0.3608,99340.0,99338.0,0.201443]
[1737960113394,0.00015104,99340.0,99339.0,0.201442]
[1737960113600,0.003,99345.0,99344.0,0.201431]
[1737960114088,0.3608,99356.0,99351.0,0.201417]
[1737960114492,0.3608,99356.0,99335.0,0.26770491]
[1737960114493,0.3608,99356.0,99337.0,0.201445]
[1737960114705,0.3608,99356.0,99335.0,0.26770491]
[1737960114706,0.3608,99346.0,99345.0,0.201429]
[1737960116198,0.3608,99346.0,99345.0,0.501429]